[Event "Netanya Open 2019"]
[Site "Netanya"]
[Date "2019.06.25"]
[Round "3.13"]
[White "Baron, Tal"]
[Black "Shvayger, Yuliya"]
[Result "1/2-1/2"]
[ECO "E49"]
[WhiteElo "2524"]
[BlackElo "2361"]
[Annotator "ChessBase"]
[PlyCount "90"]
[EventDate "2019.06.23"]
[EventType "swiss"]
[EventCountry "ISR"]
[SourceTitle "playchess.com"]
[Source "ChessBase"]
[SourceQuality "1"]
[TimeControl "40/5400+30:1800+30"]

1. d4 {[%emt 0:07:07]} Nf6 {[%emt 0:00:00]} 2. c4 {[%emt 0:00:06]} e6 {[%emt 0:00:12]} 3. Nc3 {[%emt 0:00:06]} Bb4 {[%emt 0:00:51]} 4. a3 {[%emt 0:00:50]} Bxc3+ {[%emt 0:00:42]} 5. bxc3 {[%emt 0:00:06]} O-O {[%emt 0:00:27]} 6. f3 {[%emt 0:00:19]} d5 {[%emt 0:00:48]} 7. cxd5 {[%emt 0:01:16]} exd5 {[%emt 0:03:05]} 8. e3 {[%emt 0:00:51]} c5 {[%emt 0:01:31]} 9. Bd3 {[%emt 0:01:11]} b6 {[%emt 0:04:45]} 10. Ne2 {[%emt 0:02:26]} Ba6 {[%emt 0:00:09]} 11. O-O {[%emt 0:00:08]} Re8 {[%emt 0:02:03]} 12. Ng3 {[%emt 0:00:34]} Bxd3 {[%emt 0:04:37]} 13. Qxd3 {[%emt 0:00:06]} Nc6 {[%emt 0:00:04]} 14. Bb2 {[%emt 0:00:17]} c4 {[%emt 0:09:56]} 15. Qd2 {[%emt 0:02:07]} h5 {[%emt 0:00:06]} 16. Qf2 {[%emt 0:00:32]} Qd7 {[%emt 0:03:58]} 17. Rae1 {[%emt 0:01:48]} Re6 {[%emt 0:06:47]} 18. e4 {[%emt 0:30:20]} dxe4 {[%emt 0:14:52]} 19. fxe4 {[%emt 0:00:17]} h4 {[%emt 0:00:04]} 20. Nf5 {[%emt 0:00:33]} Nxe4 {[%emt 0:01:06]} 21. Qxh4 {[%emt 0:00:49]} Nd6 {[%emt 0:00:21]} 22. Nxg7 {[%emt 0:06:03]} Rxe1 {[%emt 0:07:59]} 23. Rxe1 {[%emt 0:00:04]} Kxg7 {[%emt 0:00:06]} 24. Qg5+ {[%emt 0:13:54]} Kh7 {[%emt 0:10:38]} 25. d5 {[%emt 0:04:34]} Re8 {[%emt 0:03:51]} 26. Qh4+ {[%emt 0:04:08]} Kg8 {[%emt 0:00:32]} 27. Qg5+ {[%emt 0:04:03]} Kh7 {[%emt 0:00:09]} 28. Rxe8 {[%emt 0:02:45]} Qxe8 {[%emt 0:02:24]} 29. Qh4+ {[%emt 0:00:32]} Kg8 {[%emt 0:00:41]} 30. Qg3+ {[%emt 0:00:13]} Kh7 {[%emt 0:00:05]} 31. Qh4+ {[%emt 0:00:06]} Kg8 {[%emt 0:00:05]} 32. Qg3+ {[%emt 0:00:01]} Kh7 {[%emt 0:00:35]} 33. dxc6 {[%emt 0:00:00]} Qxc6 {[%emt 0:00:02]} 34. Qh4+ {[%emt 0:02:43]} Kg8 {[%emt 0:00:50]} 35. Qg5+ {[%emt 0:02:38]} Kh7 {[%emt 0:04:50]} 36. Qh5+ {[%emt 0:00:36]} Kg8 {[%emt 0:00:24]} 37. Qg5+ {[%emt 0:00:50]} Kh7 {[%emt 0:00:02]} 38. Qh5+ {[%emt 0:01:17]} Kg8 {[%emt 0:00:09]} 39. Bc1 {[%emt 0:02:02]} Qe4 {[%emt 0:01:01]} 40. Qg5+ {[%emt 0:00:07]} Kh7 {[%emt 0:03:40]} 41. h3 {[%emt 0:33:06]} Nf5 {[%emt 0:31:20]} 42. Kh2 {[%emt 0:06:26]} b5 {[%emt 0:00:25]} 43. Qh5+ {[%emt 0:00:00]} Kg7 {[%emt 0:00:00]} 44. Qg5+ {[%emt 0:00:00]} Kh7 {[%emt 0:00:00]} 45. Qh5+ {[%emt 0:00:00]} Kg7 {[%emt 0:00:00]} 1/2-1/2

[Event "Netanya Open 2019"]
[Site "Netanya"]
[Date "2019.06.25"]
[Round "3.14"]
[White "Iliaguev, Nisim"]
[Black "Greenfeld, Alon"]
[Result "1/2-1/2"]
[ECO "E68"]
[WhiteElo "2357"]
[BlackElo "2513"]
[Annotator "ChessBase"]
[PlyCount "170"]
[EventDate "2019.06.23"]
[EventType "swiss"]
[EventCountry "ISR"]
[SourceTitle "playchess.com"]
[Source "ChessBase"]
[SourceQuality "1"]
[TimeControl "40/5400+30:1800+30"]

1. d4 {[%emt 0:00:00]} Nf6 {[%emt 0:07:57]} 2. c4 {[%emt 0:00:00]} g6 {[%emt 0:00:22]} 3. g3 {[%emt 0:00:00]} Bg7 {[%emt 0:00:43]} 4. Bg2 {[%emt 0:00:00]} O-O {[%emt 0:00:22]} 5. Nc3 {[%emt 0:00:00]} d6 {[%emt 0:00:41]} 6. Nf3 {[%emt 0:00:07]} Nbd7 {[%emt 0:01:01]} 7. O-O {[%emt 0:00:12]} e5 {[%emt 0:00:34]} 8. h3 {[%emt 0:01:40]} exd4 {[%emt 0:05:48]} 9. Nxd4 {[%emt 0:00:19]} Re8 {[%emt 0:00:10]} 10. e4 {[%emt 0:00:38]} Nc5 {[%emt 0:00:40]} 11. Re1 {[%emt 0:00:12]} Bd7 {[%emt 0:00:05]} 12. Bf4 {[%emt 0:00:30]} h6 {[%emt 0:03:25]} 13. g4 {[%emt 0:11:43]} h5 {[%emt 0:00:32]} 14. g5 {[%emt 0:19:41]} Nh7 {[%emt 0:00:15]} 15. h4 {[%emt 0:00:13]} f6 {[%emt 0:01:11]} 16. Nf3 {[%emt 0:07:15]} Bg4 {[%emt 0:08:03]} 17. gxf6 {[%emt 0:06:00]} Qxf6 {[%emt 0:00:16]} 18. Bg3 {[%emt 0:03:22]} Qf7 {[%emt 0:27:15]} 19. Qd5 {[%emt 0:06:05]} Qxd5 {[%emt 0:06:40]} 20. Nxd5 {[%emt 0:01:28]} Rac8 {[%emt 0:02:48]} 21. Nf4 {[%emt 0:12:51]} Nf8 {[%emt 0:06:45]} 22. Rab1 {[%emt 0:07:24]} Nxe4 {[%emt 0:03:36]} 23. Rxe4 {[%emt 0:00:41]} Rxe4 {[%emt 0:00:07]} 24. Ng5 {[%emt 0:00:06]} Re7 {[%emt 0:02:21]} 25. Bxb7 {[%emt 0:01:00]} Rb8 {[%emt 0:00:44]} 26. Bd5+ {[%emt 0:00:18]} Kh8 {[%emt 0:00:17]} 27. Nf7+ {[%emt 0:00:05]} Kh7 {[%emt 0:01:24]} 28. Ng5+ {[%emt 0:00:46]} Kh6 {[%emt 0:00:48]} 29. Nf7+ {[%emt 0:06:14]} Rxf7 {[%emt 0:01:15]} 30. Bxf7 {[%emt 0:00:01]} Bf5 {[%emt 0:02:42]} 31. Re1 {[%emt 0:00:11]} Rxb2 {[%emt 0:00:46]} 32. Nd5 {[%emt 0:01:18]} Nd7 {[%emt 0:05:11]} 33. Re7 {[%emt 0:06:55]} Bf8 {[%emt 0:00:17]} 34. Re8 {[%emt 0:07:01]} Kg7 {[%emt 0:04:50]} 35. Be6 {[%emt 0:00:18]} Bxe6 {[%emt 0:01:09]} 36. Rxe6 {[%emt 0:00:02]} Kf7 {[%emt 0:02:36]} 37. Re3 {[%emt 0:00:31]} Rb7 {[%emt 0:00:58]} 38. Kg2 {[%emt 0:02:14]} Ne5 {[%emt 0:01:46]} 39. Bxe5 {[%emt 0:00:35]} dxe5 {[%emt 0:00:08]} 40. Rxe5 {[%emt 0:00:34]} c6 {[%emt 0:01:25]} 41. Ne3 {[%emt 0:31:21]} Be7 {[%emt 0:30:57]} 42. Ra5 {[%emt 0:00:00]} Bxh4 {[%emt 0:00:00]} 43. f4 {[%emt 0:00:00]} Bd8 {[%emt 0:00:00]} 44. Ra6 {[%emt 0:00:00]} Bb6 {[%emt 0:00:00]} 45. Kf3 {[%emt 0:00:00]} Re7 {[%emt 0:00:00]} 46. Ng2 {[%emt 0:00:00]} Re6 {[%emt 0:00:00]} 47. Ra3 {[%emt 0:00:00]} Rd6 {[%emt 0:00:00]} 48. Ne1 {[%emt 0:00:00]} Re6 {[%emt 0:00:00]} 49. Ng2 {[%emt 0:00:00]} Kf6 {[%emt 0:00:00]} 50. Rd3 {[%emt 0:00:00]} Bc5 {[%emt 0:00:00]} 51. Rd7 {[%emt 0:00:00]} Rd6 {[%emt 0:00:00]} 52. Rc7 {[%emt 0:00:00]} Bb6 {[%emt 0:00:00]} 53. Rc8 {[%emt 0:00:00]} Kg7 {[%emt 0:00:00]} 54. Ke2 {[%emt 0:00:00]} Re6+ {[%emt 0:00:10]} 55. Kf3 {[%emt 0:00:00]} Rd6 {[%emt 0:00:32]} 56. Ke2 {[%emt 0:00:00]} Rf6 {[%emt 0:00:15]} 57. Kd3 {[%emt 0:00:00]} Re6 {[%emt 0:00:21]} 58. a4 {[%emt 0:00:00]} Kh7 {[%emt 0:02:37]} 59. Ra8 {[%emt 0:00:00]} Kg7 {[%emt 0:00:13]} 60. a5 {[%emt 0:00:00]} Bf2 {[%emt 0:01:10]} 61. f5 {[%emt 0:00:00]} gxf5 {[%emt 0:00:14]} 62. Nf4 {[%emt 0:00:04]} Re3+ {[%emt 0:02:52]} 63. Kd2 {[%emt 0:00:08]} Re4 {[%emt 0:00:09]} 64. Nxh5+ {[%emt 0:00:38]} Kg6 {[%emt 0:00:22]} 65. Rf8 {[%emt 0:02:15]} Bh4 {[%emt 0:01:44]} 66. Kd3 {[%emt 0:01:02]} Bg5 {[%emt 0:00:16]} 67. Ng7 {[%emt 0:01:12]} Re3+ {[%emt 0:00:57]} 68. Kd4 {[%emt 0:00:09]} c5+ {[%emt 0:00:11]} 69. Kd5 {[%emt 0:00:29]} Kxg7 {[%emt 0:00:25]} 70. Rxf5 {[%emt 0:00:26]} Be7 {[%emt 0:00:50]} 71. Kc6 {[%emt 0:00:14]} Ra3 {[%emt 0:00:17]} 72. Kd7 {[%emt 0:01:15]} Bf8 {[%emt 0:00:32]} 73. Ke8 {[%emt 0:01:21]} Re3+ {[%emt 0:00:24]} 74. Kd7 {[%emt 0:00:05]} Re4 {[%emt 0:01:56]} 75. Kc6 {[%emt 0:00:13]} Rxc4 {[%emt 0:00:30]} 76. Kb7 {[%emt 0:00:05]} Rb4+ {[%emt 0:00:15]} 77. Kxa7 {[%emt 0:00:16]} c4 {[%emt 0:00:08]} 78. Ka6 {[%emt 0:01:20]} Rb8 {[%emt 0:01:14]} 79. Rf4 {[%emt 0:01:19]} c3 {[%emt 0:01:04]} 80. Rc4 {[%emt 0:00:09]} Bb4 {[%emt 0:00:12]} 81. Ka7 {[%emt 0:00:29]} Rb5 {[%emt 0:00:12]} 82. a6 {[%emt 0:03:17]} Bc5+ {[%emt 0:00:38]} 83. Ka8 {[%emt 0:00:13]} Ra5 {[%emt 0:01:00]} 84. Kb7 {[%emt 0:00:18]} Rb5+ {[%emt 0:00:20]} 85. Kc6 {[%emt 0:00:11]} Rb6+ {[%emt 0:01:40]} 1/2-1/2

[Event "Netanya Open 2019"]
[Site "Netanya"]
[Date "2019.06.25"]
[Round "3.15"]
[White "Zanan, Evgeny"]
[Black "Aroesti, Roee"]
[Result "1/2-1/2"]
[ECO "D30"]
[WhiteElo "2505"]
[BlackElo "2233"]
[Annotator "ChessBase"]
[PlyCount "121"]
[EventDate "2019.06.23"]
[EventType "swiss"]
[EventCountry "ISR"]
[SourceTitle "playchess.com"]
[Source "ChessBase"]
[SourceQuality "1"]
[TimeControl "40/5400+30:1800+30"]

1. d4 {[%emt 0:00:00]} d5 {[%emt 0:00:01]} 2. c4 {[%emt 0:00:00]} e6 {[%emt 0:00:33]} 3. Nf3 {[%emt 0:00:03]} c6 {[%emt 0:01:31]} 4. Nbd2 {[%emt 0:01:45]} Nf6 {[%emt 0:02:13]} 5. g3 {[%emt 0:00:51]} c5 {[%emt 0:15:38]} 6. cxd5 {[%emt 0:06:13]} cxd4 {[%emt 0:13:43]} 7. dxe6 {[%emt 0:13:27]} Bxe6 {[%emt 0:00:04]} 8. Nb3 {[%emt 0:00:17]} Nc6 {[%emt 0:03:50]} 9. Bg2 {[%emt 0:08:39]} Bb4+ {[%emt 0:12:45]} 10. Bd2 {[%emt 0:00:49]} Qb6 {[%emt 0:08:29]} 11. O-O {[%emt 0:07:50]} Bxd2 {[%emt 0:01:34]} 12. Qxd2 {[%emt 0:06:58]} Bxb3 {[%emt 0:00:16]} 13. axb3 {[%emt 0:00:18]} O-O {[%emt 0:01:28]} 14. Rfd1 {[%emt 0:02:18]} Rfd8 {[%emt 0:01:58]} 15. Ra3 {[%emt 0:02:58]} Ne4 {[%emt 0:06:30]} 16. Qf4 {[%emt 0:10:07]} Re8 {[%emt 0:00:02]} 17. Nh4 {[%emt 0:05:26]} Nc5 {[%emt 0:11:43]} 18. Nf5 {[%emt 0:01:40]} Ne6 {[%emt 0:01:04]} 19. Qg4 {[%emt 0:01:27]} Qc5 {[%emt 0:03:50]} 20. Raa1 {[%emt 0:09:32]} h5 {[%emt 0:08:59]} 21. Qe4 {[%emt 0:00:45]} Ng5 {[%emt 0:01:30]} 22. Qf4 {[%emt 0:13:46]} Ne6 {[%emt 0:00:09]} 23. Qf3 {[%emt 0:01:24]} g6 {[%emt 0:02:54]} 24. Nh4 {[%emt 0:01:20]} Rad8 {[%emt 0:00:29]} 25. Qd3 {[%emt 0:00:39]} Nb4 {[%emt 0:00:13]} 26. Qc4 {[%emt 0:00:14]} Qxc4 {[%emt 0:00:42]} 27. bxc4 {[%emt 0:00:05]} Nc5 {[%emt 0:00:11]} 28. Kf1 {[%emt 0:00:43]} a6 {[%emt 0:00:43]} 29. Rab1 {[%emt 0:03:45]} Rd6 {[%emt 0:00:37]} 30. Nf3 {[%emt 0:00:25]} Red8 {[%emt 0:00:30]} 31. Ne5 {[%emt 0:00:28]} Nd7 {[%emt 0:00:34]} 32. Nd3 {[%emt 0:00:14]} Nxd3 {[%emt 0:00:10]} 33. exd3 {[%emt 0:00:05]} a5 {[%emt 0:00:54]} 34. b4 {[%emt 0:01:34]} axb4 {[%emt 0:00:10]} 35. Rxb4 {[%emt 0:00:05]} b6 {[%emt 0:00:12]} 36. Bd5 {[%emt 0:00:44]} Nc5 {[%emt 0:00:47]} 37. Rdb1 {[%emt 0:00:50]} Rb8 {[%emt 0:00:57]} 38. Ke2 {[%emt 0:00:10]} Kg7 {[%emt 0:00:17]} 39. Kd2 {[%emt 0:00:54]} Rf6 {[%emt 0:00:23]} 40. f3 {[%emt 0:00:38]} h4 {[%emt 0:00:51]} 41. Re1 {[%emt 0:20:46]} hxg3 {[%emt 0:12:32]} 42. hxg3 {[%emt 0:00:04]} Rh8 {[%emt 0:00:03]} 43. g4 {[%emt 0:03:02]} g5 {[%emt 0:03:16]} 44. Re5 {[%emt 0:01:35]} Rh2+ {[%emt 0:00:10]} 45. Re2 {[%emt 0:00:01]} Rfh6 {[%emt 0:02:01]} 46. Be4 {[%emt 0:00:47]} Rh1 {[%emt 0:01:43]} 47. Re1 {[%emt 0:00:54]} R1h3 {[%emt 0:03:07]} 48. Re2 {[%emt 0:04:08]} Rg3 {[%emt 0:01:51]} 49. Rb1 {[%emt 0:01:28]} Na4 {[%emt 0:00:01]} 50. Rb5 {[%emt 0:00:06]} Nc3 {[%emt 0:05:01]} 51. Rxg5+ {[%emt 0:00:04]} Kf8 {[%emt 0:00:01]} 52. Rf2 {[%emt 0:02:25]} Rg1 {[%emt 0:01:22]} 53. Kc2 {[%emt 0:00:52]} Rhh1 {[%emt 0:04:09]} 54. Kb3 {[%emt 0:00:45]} Ra1 {[%emt 0:01:24]} 55. Rh5 {[%emt 0:00:30]} Rhc1 {[%emt 0:00:26]} 56. Rc2 {[%emt 0:00:34]} Rcb1+ {[%emt 0:00:47]} 57. Rb2 {[%emt 0:00:02]} Rc1 {[%emt 0:00:15]} 58. Kb4 {[%emt 0:00:59]} Ra4+ {[%emt 0:00:48]} 59. Kb3 {[%emt 0:00:00]} Raa1 {[%emt 0:00:25]} 60. Rc2 {[%emt 0:00:45]} Rcb1+ {[%emt 0:00:34]} 61. Rb2 {[%emt 0:00:02]} 1/2-1/2

[Event "Netanya Open 2019"]
[Site "Netanya"]
[Date "2019.06.25"]
[Round "3.16"]
[White "Alexikov, Alexander"]
[Black "Dvoirys, Semen I."]
[Result "0-1"]
[ECO "B31"]
[WhiteElo "2234"]
[BlackElo "2502"]
[Annotator "ChessBase"]
[PlyCount "124"]
[EventDate "2019.06.23"]
[EventType "swiss"]
[EventCountry "ISR"]
[SourceTitle "playchess.com"]
[Source "ChessBase"]
[SourceQuality "1"]
[TimeControl "40/5400+30:1800+30"]

1. e4 {[%emt 0:01:46]} c5 {[%emt 0:00:00]} 2. Nf3 {[%emt 0:00:09]} Nc6 {[%emt 0:00:10]} 3. Bb5 {[%emt 0:00:12]} g6 {[%emt 0:00:30]} 4. Bxc6 {[%emt 0:01:22]} dxc6 {[%emt 0:03:05]} 5. h3 {[%emt 0:00:22]} Nf6 {[%emt 0:02:21]} 6. Nc3 {[%emt 0:02:57]} Bg7 {[%emt 0:00:25]} 7. O-O {[%emt 0:00:17]} Nd7 {[%emt 0:05:40]} 8. d3 {[%emt 0:04:44]} e5 {[%emt 0:01:58]} 9. a3 {[%emt 0:06:42]} a5 {[%emt 0:07:52]} 10. a4 {[%emt 0:00:23]} Nf8 {[%emt 0:02:39]} 11. Bd2 {[%emt 0:07:33]} Ne6 {[%emt 0:00:11]} 12. Ne2 {[%emt 0:00:32]} O-O {[%emt 0:03:17]} 13. Bc3 {[%emt 0:02:40]} Nd4 {[%emt 0:00:24]} 14. Nfxd4 {[%emt 0:00:43]} cxd4 {[%emt 0:00:26]} 15. Bd2 {[%emt 0:00:04]} f5 {[%emt 0:10:33]} 16. exf5 {[%emt 0:08:16]} gxf5 {[%emt 0:03:08]} 17. Kh1 {[%emt 0:11:31]} c5 {[%emt 0:01:41]} 18. f3 {[%emt 0:02:32]} Ra6 {[%emt 0:02:25]} 19. Qe1 {[%emt 0:00:19]} Re8 {[%emt 0:02:53]} 20. Rd1 {[%emt 0:04:45]} Bf6 {[%emt 0:04:15]} 21. Qg3+ {[%emt 0:04:23]} Kh8 {[%emt 0:00:15]} 22. b3 {[%emt 0:00:37]} Bh4 {[%emt 0:02:46]} 23. Qh2 {[%emt 0:00:07]} Rg6 {[%emt 0:00:14]} 24. Be1 {[%emt 0:01:07]} Bf6 {[%emt 0:03:17]} 25. g4 {[%emt 0:24:16]} f4 {[%emt 0:10:13]} 26. Ng1 {[%emt 0:09:58]} h5 {[%emt 0:01:07]} 27. Rd2 {[%emt 0:03:01]} b6 {[%emt 0:00:37]} 28. Rg2 {[%emt 0:01:08]} hxg4 {[%emt 0:11:38]} 29. fxg4 {[%emt 0:00:37]} Re7 {[%emt 0:02:16]} 30. Nf3 {[%emt 0:01:07]} Rh7 {[%emt 0:00:13]} 31. Nd2 {[%emt 0:00:38]} Bxg4 {[%emt 0:01:10]} 32. hxg4 {[%emt 0:00:29]} Rgh6 {[%emt 0:02:36]} 33. Rf3 {[%emt 0:00:38]} Rxh2+ {[%emt 0:03:37]} 34. Rxh2 {[%emt 0:00:01]} Qd7 {[%emt 0:02:04]} 35. Rxh7+ {[%emt 0:00:19]} Kxh7 {[%emt 0:00:02]} 36. Ne4 {[%emt 0:00:16]} Kg6 {[%emt 0:01:40]} 37. Rf1 {[%emt 0:00:08]} Bh4 {[%emt 0:00:51]} 38. Bxh4 {[%emt 0:01:16]} Qh7 {[%emt 0:00:07]} 39. Rf2 {[%emt 0:00:46]} Qxh4+ {[%emt 0:00:11]} 40. Kg1 {[%emt 0:00:11]} Qh3 {[%emt 0:03:30]} 41. g5 {[%emt 0:03:52]} Qe3 {[%emt 0:01:46]} 42. Kg2 {[%emt 0:06:39]} Qc1 {[%emt 0:03:19]} 43. Re2 {[%emt 0:07:44]} Qd1 {[%emt 0:02:38]} 44. Rf2 {[%emt 0:02:10]} Kf5 {[%emt 0:01:22]} 45. Kh2 {[%emt 0:08:05]} Kg6 {[%emt 0:00:54]} 46. Kg2 {[%emt 0:00:10]} c4 {[%emt 0:01:07]} 47. bxc4 {[%emt 0:00:51]} Qa1 {[%emt 0:00:08]} 48. Kf3 {[%emt 0:01:23]} Qxa4 {[%emt 0:00:18]} 49. Rh2 {[%emt 0:00:18]} Kg7 {[%emt 0:03:12]} 50. Nf6 {[%emt 0:01:14]} Qc6+ {[%emt 0:00:19]} 51. Nd5 {[%emt 0:00:45]} a4 {[%emt 0:01:20]} 52. Rh6 {[%emt 0:00:24]} Qa8 {[%emt 0:00:19]} 53. Rd6 {[%emt 0:03:21]} a3 {[%emt 0:04:44]} 54. Rd7+ {[%emt 0:00:04]} Kg6 {[%emt 0:04:04]} 55. Kg4 {[%emt 0:00:14]} Qe8 {[%emt 0:01:30]} 56. Rd6+ {[%emt 0:01:06]} Kg7 {[%emt 0:00:11]} 57. Rxb6 {[%emt 0:00:15]} Qc8+ {[%emt 0:00:36]} 58. Kh4 {[%emt 0:00:44]} a2 {[%emt 0:00:18]} 59. Ne7 {[%emt 0:00:31]} Qd7 {[%emt 0:01:08]} 60. Ra6 {[%emt 0:00:39]} Qxe7 {[%emt 0:00:18]} 61. Rxa2 {[%emt 0:00:04]} Qf7 {[%emt 0:01:30]} 62. Ra6 {[%emt 0:00:24]} f3 {[%emt 0:00:12]} 0-1

[Event "Netanya Open 2019"]
[Site "Netanya"]
[Date "2019.06.25"]
[Round "3.17"]
[White "Zoler, Dan"]
[Black "Parligras, Cosmin"]
[Result "1-0"]
[ECO "E12"]
[WhiteElo "2499"]
[BlackElo "2198"]
[Annotator "ChessBase"]
[PlyCount "131"]
[EventDate "2019.06.23"]
[EventType "swiss"]
[EventCountry "ISR"]
[SourceTitle "playchess.com"]
[Source "ChessBase"]
[SourceQuality "1"]
[TimeControl "40/5400+30:1800+30"]

1. d4 {[%emt 0:14:49]} Nf6 {[%emt 0:00:00]} 2. c4 {[%emt 0:00:08]} e6 {[%emt 0:00:00]} 3. Nf3 {[%emt 0:00:08]} b6 {[%emt 0:00:00]} 4. Bf4 {[%emt 0:00:05]} Bb7 {[%emt 0:01:48]} 5. e3 {[%emt 0:00:28]} Nh5 {[%emt 0:04:45]} 6. Bg3 {[%emt 0:01:26]} d6 {[%emt 0:12:42]} 7. Nc3 {[%emt 0:01:12]} Nxg3 {[%emt 0:00:21]} 8. hxg3 {[%emt 0:00:05]} Nd7 {[%emt 0:00:07]} 9. Bd3 {[%emt 0:03:40]} g6 {[%emt 0:03:48]} 10. Qc2 {[%emt 0:11:01]} Bg7 {[%emt 0:04:01]} 11. O-O-O {[%emt 0:06:05]} Qe7 {[%emt 0:02:19]} 12. Kb1 {[%emt 0:01:22]} a6 {[%emt 0:00:41]} 13. Be4 {[%emt 0:01:03]} c6 {[%emt 0:02:34]} 14. Rh4 {[%emt 0:03:39]} f5 {[%emt 1:03:54]} 15. Bd3 {[%emt 0:01:20]} Bf6 {[%emt 0:00:00]} 16. Rhh1 {[%emt 0:01:25]} e5 {[%emt 0:00:00]} 17. dxe5 {[%emt 0:02:41]} Nxe5 {[%emt 0:00:00]} 18. Nxe5 {[%emt 0:07:17]} Bxe5 {[%emt 0:00:00]} 19. e4 {[%emt 0:06:02]} fxe4 {[%emt 0:00:00]} 20. Nxe4 {[%emt 0:00:17]} O-O-O {[%emt 0:00:00]} 21. f4 {[%emt 0:00:29]} Bf6 {[%emt 0:00:00]} 22. Be2 {[%emt 0:00:41]} Kb8 {[%emt 0:00:00]} 23. Bf3 {[%emt 0:01:27]} d5 {[%emt 0:00:00]} 24. Nxf6 {[%emt 0:05:28]} Qxf6 {[%emt 0:00:00]} 25. cxd5 {[%emt 0:01:20]} cxd5 {[%emt 0:00:00]} 26. Rd2 {[%emt 0:00:31]} Rd6 {[%emt 0:00:00]} 27. Rhd1 {[%emt 0:08:28]} Rc8 {[%emt 0:00:00]} 28. Qd3 {[%emt 0:01:24]} Rc5 {[%emt 0:00:00]} 29. a3 {[%emt 0:04:03]} Ka7 {[%emt 0:00:00]} 30. Re1 {[%emt 0:03:32]} Re6 {[%emt 0:00:00]} 31. Rxe6 {[%emt 0:01:35]} Qxe6 {[%emt 0:00:00]} 32. Re2 {[%emt 0:00:26]} Qd6 {[%emt 0:00:00]} 33. Re5 {[%emt 0:01:59]} a5 {[%emt 0:00:00]} 34. Qb3 {[%emt 0:08:24]} Qd7 {[%emt 0:01:40]} 35. g4 {[%emt 0:00:45]} Qd6 {[%emt 0:01:26]} 36. g5 {[%emt 0:00:19]} Bc6 {[%emt 0:00:26]} 37. g3 {[%emt 0:01:10]} Bb7 {[%emt 0:01:14]} 38. Qd3 {[%emt 0:00:50]} Rc7 {[%emt 0:01:41]} 39. Qd4 {[%emt 0:01:29]} Rc4 {[%emt 0:00:24]} 40. Qd3 {[%emt 0:00:46]} Rc7 {[%emt 0:00:06]} 41. Re1 {[%emt 0:09:35]} d4 {[%emt 0:01:43]} 42. Bxb7 {[%emt 0:00:47]} Rxb7 {[%emt 0:01:24]} 43. Re4 {[%emt 0:02:18]} Rd7 {[%emt 0:00:11]} 44. Qc4 {[%emt 0:01:00]} Kb7 {[%emt 0:13:40]} 45. Re6 {[%emt 0:05:38]} Qc5 {[%emt 0:00:05]} 46. Qxc5 {[%emt 0:04:02]} bxc5 {[%emt 0:00:06]} 47. a4 {[%emt 0:00:01]} Rc7 {[%emt 0:01:13]} 48. Kc2 {[%emt 0:02:02]} Rc6 {[%emt 0:00:23]} 49. Re7+ {[%emt 0:00:37]} Rc7 {[%emt 0:00:06]} 50. Re6 {[%emt 0:00:30]} Rc6 {[%emt 0:00:05]} 51. Re5 {[%emt 0:00:06]} Rc7 {[%emt 0:02:00]} 52. Kd3 {[%emt 0:03:56]} Kc6 {[%emt 0:00:05]} 53. Kc4 {[%emt 0:00:23]} Kd6 {[%emt 0:01:22]} 54. Rd5+ {[%emt 0:00:37]} Ke6 {[%emt 0:00:36]} 55. g4 {[%emt 0:00:13]} Rf7 {[%emt 0:00:06]} 56. Rxc5 {[%emt 0:00:21]} Rxf4 {[%emt 0:00:07]} 57. Rxa5 {[%emt 0:00:20]} Rxg4 {[%emt 0:00:14]} 58. Kd3 {[%emt 0:00:55]} Kd6 {[%emt 0:01:39]} 59. b4 {[%emt 0:01:40]} Kc6 {[%emt 0:00:51]} 60. Rc5+ {[%emt 0:00:21]} Kb6 {[%emt 0:00:37]} 61. a5+ {[%emt 0:00:09]} Ka6 {[%emt 0:00:10]} 62. Rc6+ {[%emt 0:03:11]} Kb7 {[%emt 0:00:19]} 63. b5 {[%emt 0:00:20]} Rxg5 {[%emt 0:00:07]} 64. a6+ {[%emt 0:00:03]} Ka7 {[%emt 0:00:48]} 65. Kc4 {[%emt 0:01:33]} Rg1 {[%emt 0:00:33]} 66. Rc7+ {[%emt 0:00:21]} 1-0

[Event "Netanya Open 2019"]
[Site "Netanya"]
[Date "2019.06.25"]
[Round "3.18"]
[White "Streltsov, Alexey"]
[Black "Bar, Roman"]
[Result "1/2-1/2"]
[ECO "B31"]
[WhiteElo "2177"]
[BlackElo "2497"]
[Annotator "ChessBase"]
[PlyCount "86"]
[EventDate "2019.06.23"]
[EventType "swiss"]
[EventCountry "ISR"]
[SourceTitle "playchess.com"]
[Source "ChessBase"]
[SourceQuality "1"]
[TimeControl "40/5400+30:1800+30"]

1. e4 {[%emt 0:00:00]} c5 {[%emt 0:00:00]} 2. Nf3 {[%emt 0:00:00]} Nc6 {[%emt 0:00:14]} 3. Bb5 {[%emt 0:00:00]} g6 {[%emt 0:00:16]} 4. Bxc6 {[%emt 0:00:02]} bxc6 {[%emt 0:00:06]} 5. O-O {[%emt 0:00:13]} Bg7 {[%emt 0:00:15]} 6. e5 {[%emt 0:00:33]} f6 {[%emt 0:04:49]} 7. e6 {[%emt 0:00:42]} dxe6 {[%emt 0:01:12]} 8. d3 {[%emt 0:00:08]} e5 {[%emt 0:05:44]} 9. b3 {[%emt 0:02:31]} Nh6 {[%emt 0:00:30]} 10. Nbd2 {[%emt 0:00:30]} O-O {[%emt 0:00:30]} 11. Qe2 {[%emt 0:00:30]} Nf5 {[%emt 0:00:30]} 12. Ba3 {[%emt 0:00:30]} Nd4 {[%emt 0:00:30]} 13. Nxd4 {[%emt 0:00:30]} cxd4 {[%emt 0:00:30]} 14. f4 {[%emt 0:00:30]} Bf5 {[%emt 0:53:20]} 15. Rae1 {[%emt 0:40:33]} Qc7 {[%emt 0:00:30]} 16. fxe5 {[%emt 0:00:30]} fxe5 {[%emt 0:00:30]} 17. Nc4 {[%emt 0:10:14]} Be6 {[%emt 0:06:46]} 18. Rxf8+ {[%emt 0:09:55]} Rxf8 {[%emt 0:00:07]} 19. Nxe5 {[%emt 0:00:24]} Bh6 {[%emt 0:05:40]} 20. Qe4 {[%emt 0:13:41]} Be3+ {[%emt 0:10:37]} 21. Rxe3 {[%emt 0:00:18]} dxe3 {[%emt 0:00:06]} 22. Nxc6 {[%emt 0:08:58]} Rf6 {[%emt 0:01:39]} 23. Bc5 {[%emt 0:06:36]} e2 {[%emt 0:04:01]} 24. Bf2 {[%emt 0:00:05]} a6 {[%emt 0:01:31]} 25. Nd4 {[%emt 0:00:54]} Bc8 {[%emt 0:01:17]} 26. c4 {[%emt 0:01:21]} Bb7 {[%emt 0:00:48]} 27. Qxe2 {[%emt 0:00:06]} Qf4 {[%emt 0:00:28]} 28. h3 {[%emt 0:00:44]} Qc1+ {[%emt 0:00:26]} 29. Kh2 {[%emt 0:00:14]} Qf4+ {[%emt 0:00:13]} 30. Kg1 {[%emt 0:00:04]} e5 {[%emt 0:01:02]} 31. Nc2 {[%emt 0:00:08]} Qg5 {[%emt 0:00:26]} 32. Ne3 {[%emt 0:00:29]} h5 {[%emt 0:00:35]} 33. Kh2 {[%emt 0:00:41]} Rf7 {[%emt 0:00:30]} 34. h4 {[%emt 0:00:55]} Qf6 {[%emt 0:00:34]} 35. Bg3 {[%emt 0:00:07]} Rd7 {[%emt 0:00:23]} 36. Nd1 {[%emt 0:00:52]} Qf5 {[%emt 0:00:45]} 37. Nf2 {[%emt 0:00:15]} Re7 {[%emt 0:00:32]} 38. d4 {[%emt 0:02:20]} g5 {[%emt 0:00:26]} 39. Bxe5 {[%emt 0:01:32]} gxh4 {[%emt 0:00:26]} 40. Nd3 {[%emt 0:00:41]} Be4 {[%emt 0:00:39]} 41. Nf2 {[%emt 0:06:00]} Bb7 {[%emt 0:00:55]} 42. Nd3 {[%emt 0:11:20]} Be4 {[%emt 0:04:35]} 43. Nf2 {[%emt 0:00:11]} Bb7 {[%emt 0:00:19]} 1/2-1/2